bitfinex-derivatives/quotes_BTCF0:USTF0_20240820
["timestamp","ask_amount","ask_price","bid_price","bid_amount"]
[1724123964100,0.0913,60517.0,60513.0,0.0913]
[1724123964101,0.535682,60519.0,60515.0,0.14054494]
[1724123964298,0.0659302,60516.0,60515.0,0.0913]
[1724123966004,0.001,60516.0,60515.0,0.14054494]
[1724123966208,0.001,60516.0,60515.0,0.669647]
[1724123966404,0.05042629,60516.0,60515.0,0.173887]
[1724123967102,0.05142629,60516.0,60515.0,0.173887]
[1724123968117,0.002,60516.0,60515.0,0.173887]
[1724123968409,0.002,60516.0,60515.0,0.669647]
[1724123968708,0.002,60516.0,60515.0,1.069647]
[1724123969015,0.002,60516.0,60515.0,1.13518191]
[1724123969604,0.002,60516.0,60515.0,1.069647]
[1724123969813,0.00024772,60522.0,60515.0,1.069647]
[1724123969814,0.00024772,60522.0,60521.0,0.082579]
[1724123970006,0.04942629,60527.0,60521.0,1.34778]
[1724123970208,0.12872591,60536.0,60521.0,1.34778]
[1724123970209,0.04942629,60530.0,60526.0,0.3608]
[1724123970514,0.3608,60539.0,60526.0,0.3608]
[1724123970515,0.14072629,60535.0,60531.0,0.082565]
[1724123970715,0.04942629,60534.0,60531.0,0.082565]
[1724123971107,0.04942629,60534.0,60531.0,0.443365]
[1724123971511,0.14072629,60535.0,60531.0,0.443365]
[1724123972015,0.04942629,60534.0,60531.0,0.443365]
[1724123972220,0.14072629,60535.0,60531.0,0.443365]
[1724123972615,0.14372629,60535.0,60531.0,0.443365]
[1724123972814,0.14372629,60535.0,60533.0,0.0913]
[1724123973116,0.04942629,60534.0,60533.0,0.0913]
[1724123973316,0.05242629,60534.0,60531.0,0.443365]
[1724123973611,0.0913,60533.0,60531.0,0.443365]
[1724123973814,0.14072629,60533.0,60531.0,0.443365]
[1724123974015,0.04942629,60532.0,60531.0,0.082565]
[1724123974516,0.0913,60533.0,60531.0,0.082565]
[1724123974517,0.14072629,60533.0,60531.0,0.082565]
[1724123974710,0.04942629,60532.0,60531.0,0.082565]
[1724123976713,0.05442629,60532.0,60531.0,0.082565]
[1724123977819,0.06370233,60532.0,60531.0,0.082565]
[1724123978016,0.06370233,60532.0,60529.0,0.0913]
[1724123978017,0.01427604,60532.0,60529.0,0.0913]
[1724123978220,3.81939826,60531.0,60529.0,0.0913]
[1724123978520,3.77,60531.0,60529.0,0.0913]
[1724123978717,3.81939826,60531.0,60529.0,0.0913]
[1724123978917,3.77,60531.0,60529.0,0.0913]
[1724123979312,3.771,60531.0,60529.0,0.0913]
[1724123980108,0.001,60531.0,60529.0,0.173868]
[1724123980314,0.001,60531.0,60529.0,0.0913]
[1724123980616,0.001,60531.0,60529.0,0.4521]
[1724123981310,0.001,60531.0,60530.0,0.082567]
[1724123982319,3.90284026,60534.0,60530.0,0.082567]
[1724123982519,0.002,60531.0,60530.0,0.082567]
[1724123982714,0.002,60531.0,60530.0,0.173867]
[1724123983420,3.90292026,60534.0,60530.0,0.173867]
[1724123983722,3.90396026,60534.0,60530.0,0.173867]
[1724123984024,0.001,60531.0,60530.0,0.173867]
[1724123984320,0.003,60531.0,60530.0,0.173867]
[1724123984517,0.002,60531.0,60530.0,0.173867]
[1724123984716,0.002,60531.0,60530.0,0.534667]
[1724123985120,0.002,60531.0,60530.0,0.173867]
[1724123985623,0.003,60531.0,60530.0,0.173867]
[1724123985819,0.05039826,60531.0,60530.0,0.173867]
[1724123986411,0.003,60531.0,60530.0,0.173867]
[1724123986920,0.05239826,60531.0,60530.0,0.173867]
[1724123987419,0.003,60531.0,60530.0,0.173867]
[1724123988319,0.3638,60531.0,60530.0,0.173867]
[1724123991025,0.003,60531.0,60530.0,0.173867]
[1724123993228,0.05240518,60531.0,60530.0,0.173867]
[1724123994331,0.05243873,60531.0,60530.0,0.173867]
[1724123994724,0.003,60531.0,60530.0,0.173867]
[1724123995821,0.0524403,60531.0,60530.0,0.173867]
[1724123996022,0.05244044,60531.0,60530.0,0.173867]
[1724123996222,0.003,60531.0,60530.0,0.22308954]
[1724123997124,0.003,60531.0,60530.0,0.173867]
[1724123998326,0.3638,60531.0,60530.0,0.22317944]
[1724123998526,0.3638,60531.0,60530.0,0.22317983]
[1724123999127,0.3638,60531.0,60530.0,0.173867]
[1724123999821,0.3638,60531.0,60530.0,0.13189635]
[1724124000126,0.3638,60531.0,60530.0,0.22319635]
[1724124000332,0.446365,60531.0,60530.0,0.04932935]
[1724124001131,0.52889091,60531.0,60530.0,0.04932935]
[1724124001529,0.446365,60531.0,60530.0,0.04932935]
[1724124002234,0.446365,60531.0,60528.0,0.0913]
[1724124003125,0.082567,60530.0,60528.0,0.0913]
[1724124003534,0.082567,60530.0,60528.0,0.0923]
[1724124005133,0.082567,60530.0,60528.0,0.0933]
[1724124005636,0.173868,60529.0,60528.0,0.002]
[1724124005936,0.082571,60527.0,60526.0,0.00024772]
[1724124006129,0.082571,60527.0,60526.0,0.04960182]
[1724124006539,0.082571,60527.0,60526.0,0.00024772]
[1724124006933,0.10933773,60527.0,60526.0,0.00024772]
[1724124007239,0.082571,60527.0,60526.0,0.00024772]
[1724124007432,0.10933779,60527.0,60526.0,0.00024772]
[1724124007645,0.16508312,60527.0,60526.0,0.00124772]
[1724124008332,0.17474331,60527.0,60526.0,0.00124772]
[1724124008939,0.53554331,60527.0,60526.0,0.00124772]
[1724124009139,0.45303119,60527.0,60526.0,0.00124772]
[1724124010333,0.09223119,60527.0,60526.0,0.00124772]
[1724124010529,0.09223119,60527.0,60526.0,0.05060182]
[1724124011240,0.09223119,60527.0,60526.0,0.00124772]
[1724124016847,0.45303119,60527.0,60526.0,0.00124772]
[1724124017437,0.17474331,60527.0,60526.0,0.00124772]
[1724124017637,0.45303119,60527.0,60526.0,0.00124772]
[1724124019541,0.09223119,60527.0,60526.0,0.00124772]
[1724124019742,0.45303119,60527.0,60526.0,0.00124772]
[1724124020442,0.09223119,60527.0,60526.0,0.00124772]
[1724124020643,0.45303119,60527.0,60526.0,0.00124772]
[1724124022457,0.47979828,60527.0,60526.0,0.00124772]
[1724124023246,0.57109828,60527.0,60526.0,0.00124772]
[1724124023550,0.71109828,60527.0,60526.0,0.00124772]
[1724124024146,0.35029828,60527.0,60526.0,0.00124772]
[1724124024352,0.71109828,60527.0,60526.0,0.00124772]
[1724124024748,0.71109828,60527.0,60526.0,0.001]
[1724124026451,1.28930928,60527.0,60526.0,0.001]
[1724124026655,1.68930928,60527.0,60526.0,0.001]
[1724124027046,5.45930928,60527.0,60526.0,0.001]
[1724124028147,5.49120519,60527.0,60526.0,0.001]
[1724124028341,5.09120519,60527.0,60526.0,0.001]
[1724124028560,5.49120519,60527.0,60526.0,0.001]
[1724124029248,5.4912052,60527.0,60526.0,0.001]
[1724124031555,5.45930928,60527.0,60526.0,0.001]
[1724124031752,5.49120558,60527.0,60526.0,0.001]
[1724124032349,5.49121125,60527.0,60526.0,0.001]
[1724124036363,5.85201125,60527.0,60526.0,0.001]
[1724124037170,5.8520111,60527.0,60526.0,0.001]
[1724124037354,0.165158,60521.0,60520.0,0.00024772]
[1724124037657,0.81403049,60521.0,60520.0,0.00024772]
[1724124037864,1.30971049,60521.0,60520.0,0.00024772]
[1724124038563,1.31071049,60521.0,60520.0,0.00024772]
[1724124038758,1.31171049,60521.0,60520.0,0.00024772]
[1724124039266,1.67251049,60521.0,60520.0,0.00024772]
[1724124041559,1.67251102,60521.0,60520.0,0.00024772]
[1724124043565,1.67251102,60521.0,60505.0,0.10004713]
[1724124043566,0.0826,60506.0,60505.0,0.0903]
[1724124043767,0.13202211,60506.0,60505.0,0.0903]
[1724124043977,0.0826,60506.0,60505.0,0.0903]
[1724124044563,0.0836,60506.0,60505.0,0.0903]
[1724124044760,0.0846,60506.0,60505.0,0.0903]
[1724124045469,3.8546,60506.0,60505.0,0.0903]
[1724124046264,0.082609,60499.0,60498.0,0.00961366]
[1724124046568,0.534709,60499.0,60498.0,0.00961366]
[1724124046869,0.08261,60498.0,60497.0,0.0459]
[1724124047965,3.85261,60498.0,60497.0,0.0459]
[1724124048169,0.082614,60496.0,60493.0,0.05578876]
[1724124048361,0.0913,60496.0,60494.0,0.0459]
[1724124048866,0.082615,60495.0,60494.0,0.0459]
[1724124049863,0.173915,60495.0,60494.0,0.0459]
[1724124050168,0.22329112,60495.0,60494.0,0.0459]
[1724124050571,0.22328661,60495.0,60494.0,0.0459]
[1724124050772,0.22428661,60495.0,60494.0,0.0459]
[1724124050967,0.535715,60495.0,60494.0,0.0459]
[1724124051766,0.58608617,60495.0,60494.0,0.0459]
[1724124053367,0.22528617,60495.0,60494.0,0.0459]
[1724124053678,0.58608617,60495.0,60494.0,0.0459]
[1724124055679,0.22528617,60495.0,60494.0,0.0459]
[1724124055879,0.58608617,60495.0,60494.0,0.0459]
[1724124057481,0.536715,60495.0,60494.0,0.0459]
[1724124059473,0.175915,60495.0,60494.0,0.0459]
[1724124059970,0.536715,60495.0,60494.0,0.0459]
[1724124061472,0.445415,60495.0,60494.0,0.0459]
[1724124061672,0.536715,60495.0,60494.0,0.0459]
[1724124062985,0.082619,60492.0,60491.0,0.0471]
[1724124063174,0.173919,60492.0,60490.0,0.00020225]
[1724124063482,0.08262,60491.0,60490.0,0.00020225]
[1724124064872,0.13200313,60491.0,60490.0,0.00020225]
[1724124065081,0.08362,60491.0,60490.0,0.00020225]
[1724124066188,0.08462,60491.0,60490.0,0.00020225]
[1724124066681,0.08362,60491.0,60490.0,0.00020225]
[1724124066884,0.08462,60491.0,60490.0,0.00020225]
[1724124067781,0.15050901,60491.0,60490.0,0.00020225]
[1724124068380,0.19990901,60491.0,60490.0,0.00020225]
[1724124068586,0.14362897,60491.0,60490.0,0.00020225]
[1724124068785,1.40136523,60491.0,60490.0,0.00020225]
[1724124069081,1.36519505,60491.0,60490.0,0.00020225]
[1724124070280,1.36419505,60491.0,60490.0,0.00020225]
[1724124071584,1.36419505,60491.0,60490.0,2.5e-07]
[1724124072492,1.46303927,60491.0,60490.0,2.5e-07]
[1724124072684,1.46317468,60491.0,60490.0,2.5e-07]
[1724124072984,1.4631766,60491.0,60490.0,2.5e-07]
[1724124073488,1.36433238,60491.0,60490.0,2.5e-07]
[1724124074091,1.46319521,60491.0,60490.0,2.5e-07]
[1724124074593,1.36433238,60491.0,60490.0,2.5e-07]
[1724124075393,0.96433238,60491.0,60490.0,2.5e-07]
[1724124076387,1.01113238,60491.0,60490.0,2.5e-07]
[1724124077190,1.73273238,60491.0,60490.0,2.5e-07]
[1724124077384,1.75952007,60491.0,60490.0,2.5e-07]
[1724124077589,1.73273207,60491.0,60490.0,2.5e-07]
[1724124077789,1.83161243,60491.0,60490.0,2.5e-07]
[1724124079189,1.73273207,60491.0,60490.0,2.5e-07]
[1724124080086,1.01113207,60491.0,60490.0,2.5e-07]
[1724124080286,1.73273207,60491.0,60490.0,2.5e-07]
[1724124082396,1.83159533,60491.0,60490.0,2.5e-07]
[1724124082700,1.33563533,60491.0,60490.0,2.5e-07]
[1724124083600,1.23677207,60491.0,60490.0,2.5e-07]
[1724124084186,0.61404101,60491.0,60490.0,2.5e-07]
[1724124084389,1.33564101,60491.0,60490.0,2.5e-07]
[1724124084988,0.61404101,60491.0,60490.0,2.5e-07]
[1724124085191,1.33564101,60491.0,60490.0,2.5e-07]
[1724124086890,1.33564116,60491.0,60490.0,2.5e-07]
[1724124087398,1.23677222,60491.0,60490.0,2.5e-07]
[1724124089201,0.51517222,60491.0,60490.0,2.5e-07]
[1724124089589,1.23677222,60491.0,60490.0,2.5e-07]
[1724124090000,1.26868692,60491.0,60490.0,2.5e-07]
[1724124090189,1.23677222,60491.0,60490.0,2.5e-07]
[1724124090788,1.33572295,60491.0,60490.0,2.5e-07]
[1724124091994,1.23677222,60491.0,60490.0,2.5e-07]
[1724124094703,1.3513081,60491.0,60490.0,2.5e-07]
[1724124095105,1.46687884,60491.0,60490.0,2.5e-07]
[1724124095306,5.23687884,60491.0,60490.0,2.5e-07]
[1724124095797,5.32817884,60491.0,60490.0,2.5e-07]
[1724124095992,5.2126081,60491.0,60490.0,2.5e-07]
[1724124098904,5.1196081,60491.0,60490.0,2.5e-07]
[1724124099892,1.2089081,60491.0,60490.0,2.5e-07]
[1724124100099,0.94087548,60491.0,60490.0,2.5e-07]
[1724124100402,0.94087548,60491.0,60490.0,0.58726025]
[1724124100403,0.48095222,60491.0,60490.0,0.58726025]
[1724124100700,0.57225222,60491.0,60490.0,0.54531435]
[1724124101102,0.62802314,60491.0,60490.0,2.5e-07]
[1724124101703,0.57224798,60491.0,60490.0,2.5e-07]
[1724124104101,0.72224798,60491.0,60490.0,2.5e-07]
[1724124104706,1.08304798,60491.0,60490.0,2.5e-07]
[1724124105314,1.08305206,60491.0,60490.0,2.5e-07]
[1724124105606,1.11496677,60491.0,60490.0,2.5e-07]
[1724124106610,1.19758677,60491.0,60490.0,2.5e-07]
[1724124107416,4.96758677,60491.0,60490.0,2.5e-07]
[1724124107615,0.173934,60481.0,60480.0,0.0952]
[1724124107916,1.17138554,60481.0,60480.0,0.049]
[1724124108504,1.07248246,60481.0,60480.0,0.049]
[1724124109311,1.07348246,60481.0,60480.0,0.049]
[1724124109703,1.07448246,60481.0,60480.0,0.049]
[1724124110110,1.17354632,60481.0,60480.0,0.049]
[1724124110815,1.07448246,60481.0,60480.0,0.049]
[1724124111416,1.08385799,60481.0,60480.0,0.049]
[1724124114520,1.08385949,60481.0,60480.0,0.049]
[1724124114822,0.93385949,60481.0,60480.0,0.049]
[1724124117621,0.21225949,60481.0,60480.0,0.049]
[1724124117923,0.57305949,60481.0,60480.0,0.049]
[1724124118719,0.66042549,60481.0,60473.0,0.0965541]
[1724124118925,0.0913,60474.0,60473.0,0.0965541]
[1724124120613,0.0923,60474.0,60473.0,0.5926341]
[1724124120818,0.0933,60474.0,60473.0,0.5926341]
[1724124121018,0.002,60474.0,60473.0,0.5926341]
[1724124121218,0.0933,60474.0,60473.0,0.5926341]
[1724124121521,0.175943,60474.0,60473.0,0.54328]
[1724124121714,0.002,60474.0,60473.0,1.025925]
[1724124121909,0.082645,60473.0,60462.0,0.3229]
[1724124122113,0.0913,60463.0,60462.0,0.3229]
[1724124122316,0.09146215,60463.0,60461.0,0.3608]
[1724124122612,0.17412015,60463.0,60461.0,0.3608]
[1724124123827,0.17612015,60463.0,60461.0,0.3608]
[1724124124724,0.18579166,60463.0,60461.0,0.3608]
[1724124125519,0.08266,60462.0,60461.0,0.3608]
[1724124125812,0.10313366,60463.0,60457.0,0.14966094]
[1724124126024,0.0913,60458.0,60457.0,0.14966094]
[1724124126428,0.082662,60461.0,60457.0,1.13716094]
[1724124126723,0.04951172,60459.0,60457.0,0.24096094]
[1724124127229,0.04951172,60459.0,60458.0,0.4962]
[1724124127721,0.04951172,60459.0,60457.0,0.24196094]
[1724124128023,0.04951172,60459.0,60458.0,0.4962]
[1724124128419,0.04951172,60459.0,60458.0,0.8962]
[1724124129125,0.05051172,60459.0,60458.0,0.8962]
[1724124129428,0.05051172,60459.0,60458.0,0.8972]
[1724124129628,0.05151172,60459.0,60458.0,0.8972]
[1724124130324,0.05151172,60459.0,60458.0,0.979865]
[1724124131636,0.00016215,60463.0,60462.0,0.08266]
[1724124131819,0.00016215,60463.0,60462.0,0.84346]
[1724124132120,0.00016215,60463.0,60462.0,1.33962]
[1724124132722,0.00116215,60463.0,60462.0,1.33962]
[1724124133117,0.00216215,60463.0,60462.0,1.34062]
[1724124134722,0.00216215,60463.0,60462.0,1.54879575]
[1724124134929,0.00216215,60463.0,60462.0,1.34062]
[1724124135129,0.00216215,60463.0,60462.0,1.54879405]
[1724124135926,0.00216215,60463.0,60462.0,1.54885631]
[1724124136632,0.00216215,60463.0,60462.0,1.46653566]
[1724124138121,0.00216215,60463.0,60462.0,1.42295019]
[1724124138318,0.00216215,60463.0,60462.0,1.54886761]
[1724124138520,0.00216215,60463.0,60462.0,1.05270761]
[1724124138830,0.00024793,60469.0,60468.0,0.082651]
[1724124139037,0.06601563,60479.0,60477.0,0.082639]
[1724124139327,0.04949042,60479.0,60478.0,0.3608]
[1724124139628,0.06601563,60482.0,60478.0,0.3608]
[1724124139826,4.01e-05,60481.0,60480.0,0.04935962]
[1724124140216,4.01e-05,60481.0,60479.0,0.04935962]
[1724124141424,4.01e-05,60481.0,60478.0,0.41015962]
[1724124141618,0.082636,60479.0,60477.0,0.05335962]
[1724124141818,0.082636,60479.0,60477.0,0.004]
[1724124142022,0.082636,60479.0,60477.0,0.002]
[1724124142233,4.01e-05,60481.0,60477.0,0.002]
[1724124142234,0.14865363,60478.0,60477.0,0.002]
[1724124142428,0.08264,60477.0,60474.0,0.00024793]
[1724124142619,0.0485,60476.0,60474.0,0.00024793]
[1724124143030,0.04947611,60475.0,60474.0,0.04960755]
[1724124144628,0.09897611,60476.0,60474.0,0.05160755]
[1724124144831,0.09997611,60476.0,60474.0,0.05360755]
[1724124145029,0.0505,60476.0,60474.0,0.05360755]
[1724124145330,0.0495,60476.0,60474.0,0.05160755]
[1724124145526,0.002,60475.0,60474.0,0.13725055]
[1724124145729,0.002,60475.0,60474.0,0.08789093]
[1724124145928,0.001,60475.0,60474.0,0.08489093]
[1724124146123,0.001,60475.0,60474.0,0.08789093]
[1724124147129,0.001,60475.0,60474.0,0.98397093]
[1724124147331,0.001,60476.0,60475.0,0.082642]
[1724124147538,0.002,60476.0,60475.0,0.082642]
[1724124147729,0.002,60476.0,60475.0,0.578722]
[1724124148124,0.001,60476.0,60475.0,0.578722]
[1724124148431,0.001,60476.0,60475.0,0.082642]
[1724124148633,0.04947611,60480.0,60476.0,0.08264]
[1724124148825,0.04947611,60479.0,60476.0,0.08264]
[1724124149024,0.04947611,60478.0,60476.0,0.08264]
[1724124149234,0.04947611,60479.0,60476.0,0.08264]
[1724124149435,0.04947611,60479.0,60477.0,0.082639]
[1724124149641,0.082638,60478.0,60475.0,0.05334604]
[1724124149934,0.13211711,60476.0,60475.0,0.004]
[1724124150130,0.082641,60476.0,60475.0,0.004]
[1724124150331,0.082641,60476.0,60475.0,0.002]
[1724124150838,0.082641,60476.0,60474.0,0.00024793]
[1724124151044,0.13209743,60476.0,60474.0,0.00024793]
[1724124151743,0.083641,60476.0,60475.0,0.002]
[1724124152125,0.083641,60476.0,60475.0,0.05334604]
[1724124152336,0.083641,60476.0,60475.0,0.004]
[1724124152540,0.083641,60476.0,60475.0,0.002]
[1724124152730,0.084641,60476.0,60474.0,0.08689093]
[1724124153131,0.002,60476.0,60474.0,0.08689093]
[1724124153332,0.001,60476.0,60475.0,0.002]
[1724124153834,0.001,60476.0,60474.0,0.08489093]
[1724124154039,0.002,60476.0,60474.0,0.08689093]
[1724124154439,0.001,60476.0,60475.0,0.082642]
[1724124154637,0.002,60476.0,60475.0,0.084642]
[1724124155332,0.001,60476.0,60475.0,0.082642]
[1724124155532,0.001,60476.0,60475.0,0.084642]
[1724124156637,0.0488,60476.0,60475.0,0.084642]
[1724124156840,0.0488,60476.0,60475.0,0.13401161]
[1724124157033,0.0478,60476.0,60475.0,0.13401161]
[1724124157336,0.09825643,60476.0,60475.0,0.086642]
[1724124159029,0.0488,60476.0,60475.0,0.086642]
[1724124159238,0.09829395,60476.0,60475.0,0.086642]
[1724124159440,0.0488,60476.0,60475.0,0.086642]
[1724124163544,0.0488,60476.0,60475.0,0.15247969]
[1724124164035,0.0488,60476.0,60475.0,0.086642]
[1724124164441,0.0488,60476.0,60475.0,0.15247969]
[1724124166143,0.131441,60476.0,60475.0,0.004]
[1724124166641,3.901441,60476.0,60475.0,0.004]
[1724124167036,3.92823135,60476.0,60475.0,0.004]
[1724124168848,3.84559035,60476.0,60471.0,0.04945751]
[1724124169049,0.3608,60472.0,60471.0,0.04945751]
[1724124169248,0.3608,60472.0,60470.0,0.04946146]
[1724124169552,0.082651,60468.0,60467.0,0.3229]
[1724124169737,0.16526005,60468.0,60467.0,0.3229]
[1724124169937,0.0826911,60468.0,60467.0,0.3229]
[1724124170640,0.082656,60465.0,60462.0,0.04946146]
[1724124170845,4.01e-05,60468.0,60461.0,0.04946146]
[1724124170846,0.14868575,60463.0,60461.0,0.04946146]
[1724124171355,0.082659,60463.0,60460.0,0.04946146]
[1724124171539,0.082659,60463.0,60461.0,0.04946146]
[1724124172243,0.082659,60463.0,60460.0,0.04946146]
[1724124172438,0.04948372,60461.0,60459.0,0.04946146]
[1724124173347,0.13214372,60462.0,60459.0,0.04946146]
[1724124173543,0.13214372,60462.0,60458.0,0.41026146]
[1724124174453,0.001,60463.0,60457.0,0.04946146]
[1724124174454,0.082665,60458.0,60457.0,0.04946146]
[1724124174646,0.082665,60458.0,60456.0,0.04946146]
[1724124174838,0.082665,60458.0,60455.0,0.37236146]
[1724124175244,0.082665,60458.0,60455.0,0.3229]
[1724124175549,0.082665,60458.0,60455.0,0.37236146]
[1724124175743,0.082667,60457.0,60455.0,0.3229]
[1724124175950,0.082667,60457.0,60456.0,0.001]
[1724124176542,0.082668,60456.0,60455.0,0.001]
[1724124177648,0.083668,60456.0,60455.0,0.001]
[1724124178538,0.083668,60456.0,60454.0,0.0585474]
[1724124179063,0.083668,60456.0,60454.0,0.0097474]
[1724124179064,0.082669,60455.0,60454.0,0.0097474]
[1724124179246,0.082669,60455.0,60453.0,0.04946146]
[1724124179447,0.0827111,60454.0,60453.0,0.04946146]
[1724124179647,0.082672,60453.0,60452.0,0.04946146]
[1724124180249,4.01e-05,60454.0,60448.0,0.0100108]
[1724124180552,0.082677,60449.0,60448.0,0.0100108]
[1724124181047,0.082677,60449.0,60448.0,0.5062908]
[1724124181738,0.083677,60449.0,60448.0,0.5062908]
[1724124182251,0.3608,60450.0,60448.0,0.5062908]
[1724124182452,0.09349028,60454.0,60448.0,0.8670908]
[1724124182751,0.001,60449.0,60448.0,0.4544898]
[1724124183253,0.001,60449.0,60448.0,1.3507698]
[1724124184346,0.001,60450.0,60448.0,1.3497698]
[1724124184550,0.001,60449.0,60448.0,0.4534898]
[1724124185055,0.002,60449.0,60448.0,0.9497698]
[1724124185752,0.001,60449.0,60448.0,0.9497698]
[1724124186349,0.002,60449.0,60448.0,0.9497698]
[1724124187055,0.001,60449.0,60448.0,0.9507698]
[1724124187754,0.002,60449.0,60448.0,0.9507698]
[1724124188658,0.002,60449.0,60448.0,0.4544898]
[1724124188855,0.002,60449.0,60448.0,0.0936898]
[1724124195263,0.002,60449.0,60448.0,0.14306063]
[1724124196266,0.002,60449.0,60448.0,0.0936898]
[1724124199172,0.002,60449.0,60448.0,0.21963593]
[1724124202763,0.002,60449.0,60448.0,0.58043593]
[1724124203869,0.002,60449.0,60448.0,0.67193593]
[1724124205061,4.01e-05,60454.0,60453.0,0.082672]
[1724124205265,0.08290693,60463.0,60453.0,0.57824613]
[1724124205266,0.04948372,60460.0,60453.0,0.57824613]
[1724124205573,0.04948372,60462.0,60459.0,0.53483336]
[1724124205767,0.04973165,60463.0,60462.0,0.08266]
[1724124205968,0.00024793,60463.0,60462.0,0.08266]
[1724124206163,0.04976577,60463.0,60462.0,0.08266]
[1724124206570,0.00024793,60463.0,60462.0,0.08266]
[1724124207181,0.00124793,60463.0,60462.0,0.08366]
[1724124208072,0.00124793,60463.0,60462.0,0.001]
[1724124208666,0.00224793,60463.0,60462.0,0.003]
[1724124209271,0.06826134,60463.0,60462.0,0.003]
[1724124209578,0.00224793,60463.0,60462.0,0.003]
[1724124209977,0.06826157,60463.0,60462.0,0.003]
[1724124210177,0.00224793,60463.0,60462.0,0.003]
[1724124210371,0.00124793,60463.0,60462.0,0.002]
[1724124210579,0.00224793,60463.0,60462.0,0.005]
[1724124210974,0.00124793,60463.0,60462.0,0.003]
[1724124211174,0.00224793,60463.0,60462.0,0.004]
[1724124211377,0.08490593,60463.0,60462.0,0.004]
[1724124216082,0.08490593,60463.0,60452.0,0.08247205]
[1724124216083,0.082666,60457.0,60456.0,0.04948323]
[1724124216286,0.082668,60456.0,60455.0,0.04948323]
[1724124216487,3.900668,60456.0,60454.0,0.04948323]
[1724124216782,3.900668,60456.0,60450.0,0.14865364]
[1724124216783,0.082669,60455.0,60451.0,0.06597764]
[1724124217082,0.04951781,60454.0,60452.0,0.09182109]
[1724124217378,0.082669,60455.0,60453.0,0.09182109]
[1724124217582,0.082669,60455.0,60454.0,0.02584278]
[1724124217782,3.81988,60456.0,60454.0,0.02684278]
[1724124217984,3.819,60456.0,60454.0,0.001]
[1724124218182,3.771,60456.0,60455.0,0.10851108]
[1724124218581,3.771,60456.0,60455.0,0.17452799]
[1724124218785,3.82051964,60456.0,60455.0,0.17452799]
[1724124218974,3.81951964,60456.0,60455.0,0.17452799]
[1724124219177,3.77,60456.0,60455.0,0.17452799]
[1724124219685,0.00978463,60458.0,60455.0,0.17452799]
[1724124219885,0.06602727,60459.0,60456.0,0.02584208]
[1724124220089,3.77,60458.0,60455.0,0.14868591]
[1724124220386,3.77,60458.0,60456.0,0.02584128]
[1724124220587,0.001,60456.0,60455.0,0.14868591]
[1724124220789,0.001,60456.0,60455.0,0.17452733]
[1724124221083,3.77088,60458.0,60455.0,0.17452733]
[1724124221288,0.06702727,60459.0,60456.0,0.02584142]
[1724124221586,0.07588875,60459.0,60455.0,0.14868591]
[1724124221789,0.001,60456.0,60455.0,0.15809327]
[1724124222088,0.001,60456.0,60455.0,0.18393479]
[1724124222882,0.002,60456.0,60455.0,0.18393479]
[1724124223582,0.002,60456.0,60455.0,0.11791788]
[1724124223790,0.05053398,60456.0,60455.0,0.11791788]
[1724124224287,0.001,60456.0,60455.0,0.11791788]
[1724124224485,0.05153789,60456.0,60455.0,0.11791788]
[1724124225085,0.05153789,60456.0,60455.0,0.47871788]
[1724124225282,0.002,60456.0,60455.0,0.47871788]
[1724124228090,0.002,60456.0,60455.0,0.47871774]
[1724124229785,0.0515622,60456.0,60455.0,0.47871774]
[1724124230092,0.002,60456.0,60455.0,0.60464975]
[1724124230293,0.002,60456.0,60455.0,1.19985586]
[1724124230483,0.002,60456.0,60455.0,1.19238933]
[1724124230678,0.002,60456.0,60455.0,1.16655093]
[1724124233482,0.002,60456.0,60455.0,0.67031093]
[1724124234890,0.002,60456.0,60455.0,1.16655093]
[1724124235486,0.002,60456.0,60455.0,0.67031093]
[1724124240693,0.002,60456.0,60455.0,0.30951093]
[1724124240895,0.002,60456.0,60455.0,0.67031093]
[1724124241793,0.002,60456.0,60455.0,0.30951093]
[1724124241995,0.002,60456.0,60455.0,0.67031093]
[1724124242195,0.002,60456.0,60455.0,0.6703058]
[1724124243997,0.0495622,60461.0,60455.0,0.5876368]
[1724124244204,0.00024793,60463.0,60461.0,0.082656]
[1724124244205,0.0495622,60462.0,60461.0,0.082656]
[1724124244398,0.04981013,60463.0,60462.0,0.082655]
[1724124245699,0.05081013,60463.0,60462.0,0.443455]
[1724124246094,0.05181013,60463.0,60462.0,0.443455]
[1724124246996,0.00224793,60463.0,60462.0,0.443455]
[1724124250503,0.00224793,60463.0,60462.0,0.52588717]
[1724124250905,0.00224793,60463.0,60462.0,0.5693685]
[1724124252399,0.00224793,60463.0,60462.0,0.65175149]
[1724124253110,0.00224793,60463.0,60462.0,0.66142402]
[1724124253610,0.00224793,60463.0,60462.0,1.02222402]
[1724124256312,0.00224793,60463.0,60462.0,1.02222005]
[1724124258112,0.00224793,60463.0,60462.0,0.93983706]
[1724124258417,0.00224793,60463.0,60462.0,0.21823706]
[1724124258616,0.00224793,60463.0,60462.0,0.93983706]
[1724124259515,0.00224793,60463.0,60462.0,0.81392753]
[1724124262410,0.09374793,60463.0,60462.0,0.81392753]
[1724124263617,0.09374793,60463.0,60462.0,0.804255]
[1724124264312,0.14331013,60463.0,60462.0,0.804255]
[1724124265017,0.22596413,60463.0,60462.0,0.7216]
[1724124265313,0.22596413,60463.0,60462.0,0.3608]
[1724124265314,0.17640193,60463.0,60462.0,0.3608]
[1724124266418,0.08490193,60463.0,60462.0,0.3608]
[1724124266619,0.00224793,60463.0,60462.0,0.4523]
[1724124268921,0.05178792,60463.0,60462.0,0.4523]
[1724124269115,0.00224793,60463.0,60462.0,0.4523]
[1724124270019,0.00224793,60463.0,60462.0,0.0915]
[1724124270214,0.00224793,60463.0,60462.0,0.4523]
[1724124270822,0.00224793,60463.0,60462.0,0.0915]
[1724124271015,0.00224793,60463.0,60462.0,0.4523]
[1724124271325,0.00224793,60463.0,60462.0,0.534955]
[1724124272321,0.05178792,60463.0,60462.0,0.534955]
[1724124273326,0.00224793,60463.0,60462.0,0.534955]
[1724124274923,0.00224793,60463.0,60462.0,0.174155]
[1724124275125,0.00224793,60463.0,60462.0,0.534955]
[1724124277229,0.00224793,60463.0,60462.0,0.52583806]
[1724124278726,0.00224793,60463.0,60462.0,0.443455]
[1724124281730,0.00224793,60463.0,60462.0,0.082655]